[Event "46th GRE-chT Premier 2018"]
[Site "Rio Achaia"]
[Date "2018.07.10"]
[Round "1"]
[White "Klerides, Paris"]
[Black "Beliotis, Georgios"]
[Result "0-1"]
[ECO "A46"]
[WhiteElo "2196"]
[BlackElo "2175"]
[Annotator "NA"]
[PlyCount "124"]
[EventDate "2018.07.10"]
[EventType "team-tourn"]
[EventCountry "GRE"]
[SourceTitle "playchess.com"]
[Source "ChessBase"]
[SourceQuality "1"]
[TimeControl "40/5400+30:1800+30"]

1. d4 {[%emt 0:00:00]} Nf6 {[%emt 0:00:00]} 2. Nf3 {[%emt 0:00:00]} e6 {[%emt 0:00:36]} 3. e3 {[%emt 0:00:00]} c5 {[%emt 0:01:54]} 4. Bd3 {[%emt 0:00:18]} d6 {[%emt 0:02:42]} 5. O-O {[%emt 0:02:54]} Be7 {[%emt 0:01:29]} 6. Nbd2 {[%emt 0:03:22]} O-O {[%emt 0:00:34]} 7. c3 {[%emt 0:02:51]} Nbd7 {[%emt 0:01:25]} 8. Qc2 {[%emt 0:02:44]} Qc7 {[%emt 0:11:04]} 9. Re1 {[%emt 0:04:08]} a6 {[%emt 0:13:55]} 10. a4 {[%emt 0:01:21]} b6 {[%emt 0:00:57]} 11. Ng5 {[%emt 0:08:39]} h6 {[%emt 0:04:11]} 12. Nge4 {[%emt 0:03:11]} Bb7 {[%emt 0:02:53]} 13. b3 {[%emt 0:05:46]} Rac8 {[%emt 0:02:43]} 14. Bb2 {[%emt 0:02:24]} Qb8 {[%emt 0:06:18]} 15. Rac1 {[%emt 0:04:15]} Qa8 {[%emt 0:13:40]} 16. f3 {[%emt 0:02:39]} cxd4 {[%emt 0:02:46]} 17. exd4 {[%emt 0:00:28]} Nd5 {[%emt 0:03:10]} 18. Qd1 {[%emt 0:03:28]} Nf4 {[%emt 0:05:58]} 19. Bb1 {[%emt 0:07:35]} b5 {[%emt 0:04:16]} 20. axb5 {[%emt 0:07:23]} axb5 {[%emt 0:00:09]} 21. Nf1 {[%emt 0:02:34]} f5 {[%emt 0:03:15]} 22. Neg3 {[%emt 0:04:04]} Bg5 {[%emt 0:01:44]} 23. Rc2 {[%emt 0:08:30]} Nb6 {[%emt 0:03:11]} 24. Bc1 {[%emt 0:05:47]} Nbd5 {[%emt 0:04:37]} 25. c4 {[%emt 0:07:05]} Nb4 {[%emt 0:01:20]} 26. Rf2 {[%emt 0:04:56]} bxc4 {[%emt 0:01:38]} 27. h4 {[%emt 0:03:06]} Nfd3 {[%emt 0:02:33]} 28. hxg5 {[%emt 0:00:05]} Nxf2 {[%emt 0:00:49]} 29. Kxf2 {[%emt 0:00:06]} c3 {[%emt 0:01:34]} 30. Bd3 {[%emt 0:01:45]} Qa7 {[%emt 0:00:42]} 31. Ne2 {[%emt 0:01:59]} Ba6 {[%emt 0:01:20]} 32. Bc4 {[%emt 0:01:51]} d5 {[%emt 0:00:42]} 33. Bxa6 {[%emt 0:00:08]} Qxa6 {[%emt 0:00:24]} 34. Nf4 {[%emt 0:00:16]} hxg5 {[%emt 0:01:21]} 35. Rxe6 {[%emt 0:00:02]} Rc6 {[%emt 0:01:00]} 36. Rxc6 {[%emt 0:00:39]} Qxc6 {[%emt 0:00:24]} 37. Nh3 {[%emt 0:00:41]} g4 {[%emt 0:00:24]} 38. Ng5 {[%emt 0:00:25]} Ra8 {[%emt 0:00:25]} 39. fxg4 {[%emt 0:00:38]} Ra1 {[%emt 0:00:42]} 40. gxf5 {[%emt 0:00:00]} Qf6 {[%emt 0:00:00]} 41. Qe2 {[%emt 0:04:46]} Ra2 {[%emt 0:17:28]} 42. Bd2 {[%emt 0:01:28]} Nd3+ {[%emt 0:04:36]} 43. Qxd3 {[%emt 0:10:48]} cxd2 {[%emt 0:00:29]} 44. Nxd2 {[%emt 0:02:01]} Qxg5 {[%emt 0:00:07]} 45. Ke1 {[%emt 0:00:58]} Qxg2 {[%emt 0:00:24]} 46. Qc3 {[%emt 0:00:31]} Qg1+ {[%emt 0:01:00]} 47. Ke2 {[%emt 0:00:05]} Qg4+ {[%emt 0:00:21]} 48. Ke1 {[%emt 0:01:20]} Qxf5 {[%emt 0:01:23]} 49. Qf3 {[%emt 0:01:55]} Qg5 {[%emt 0:01:10]} 50. Qc3 {[%emt 0:01:41]} Qg1+ {[%emt 0:00:36]} 51. Ke2 {[%emt 0:00:03]} Qg4+ {[%emt 0:02:01]} 52. Ke1 {[%emt 0:01:52]} Ra8 {[%emt 0:00:51]} 53. Qe3 {[%emt 0:05:53]} Ra1+ {[%emt 0:02:10]} 54. Kf2 {[%emt 0:00:04]} Qg1+ {[%emt 0:00:29]} 55. Kf3 {[%emt 0:00:09]} Qh1+ {[%emt 0:00:09]} 56. Kf2 {[%emt 0:01:16]} Qh2+ {[%emt 0:00:17]} 57. Kf3 {[%emt 0:00:08]} Qh3+ {[%emt 0:00:28]} 58. Kf2 {[%emt 0:01:23]} Qh4+ {[%emt 0:00:20]} 59. Kf3 {[%emt 0:00:20]} Re1 {[%emt 0:03:21]} 60. Qf4 {[%emt 0:03:40]} Qh1+ {[%emt 0:00:27]} 61. Kf2 {[%emt 0:00:53]} Qg1+ {[%emt 0:00:06]} 62. Kf3 {[%emt 0:00:05]} Re8 {[%emt 0:00:08]} 0-1

[Event "46th GRE-chT Premier 2018"]
[Site "Rio Achaia"]
[Date "2018.07.10"]
[Round "1"]
[White "Pavlidou, Ekaterini"]
[Black "Krasteva, Beloslava"]
[Result "1-0"]
[ECO "D31"]
[WhiteElo "2186"]
[BlackElo "2086"]
[Annotator "NA"]
[PlyCount "73"]
[EventDate "2018.07.10"]
[EventType "team-tourn"]
[EventCountry "GRE"]
[SourceTitle "playchess.com"]
[Source "ChessBase"]
[SourceQuality "1"]
[TimeControl "40/5400+30:1800+30"]

1. d4 {[%emt 0:00:00]} d5 {[%emt 0:00:00]} 2. c4 {[%emt 0:00:00]} e6 {[%emt 0:00:20]} 3. Nc3 {[%emt 0:00:09]} Be7 {[%emt 0:00:38]} 4. cxd5 {[%emt 0:03:29]} exd5 {[%emt 0:00:47]} 5. Bf4 {[%emt 0:00:13]} Nf6 {[%emt 0:02:33]} 6. e3 {[%emt 0:00:13]} O-O {[%emt 0:01:01]} 7. Bd3 {[%emt 0:00:35]} c5 {[%emt 0:01:40]} 8. Nge2 {[%emt 0:01:25]} Nc6 {[%emt 0:11:51]} 9. O-O {[%emt 0:01:26]} Be6 {[%emt 0:03:57]} 10. h3 {[%emt 0:04:13]} a6 {[%emt 0:05:46]} 11. Rc1 {[%emt 0:01:10]} c4 {[%emt 0:09:30]} 12. Bb1 {[%emt 0:01:08]} b5 {[%emt 0:02:24]} 13. a3 {[%emt 0:01:33]} Qd7 {[%emt 0:05:24]} 14. Ng3 {[%emt 0:03:50]} Rfd8 {[%emt 0:05:10]} 15. Bg5 {[%emt 0:04:29]} Ne8 {[%emt 0:05:32]} 16. Bxe7 {[%emt 0:02:47]} Nxe7 {[%emt 0:01:31]} 17. Qc2 {[%emt 0:00:23]} g6 {[%emt 0:01:16]} 18. Rcd1 {[%emt 0:06:22]} a5 {[%emt 0:03:49]} 19. Nce2 {[%emt 0:01:56]} Nd6 {[%emt 0:10:10]} 20. f3 {[%emt 0:04:05]} b4 {[%emt 0:06:39]} 21. e4 {[%emt 0:03:33]} bxa3 {[%emt 0:05:38]} 22. bxa3 {[%emt 0:00:10]} Nb5 {[%emt 0:00:57]} 23. Qc1 {[%emt 0:02:01]} Nc6 {[%emt 0:05:05]} 24. a4 {[%emt 0:01:28]} Nd6 {[%emt 0:01:38]} 25. Nf4 {[%emt 0:02:33]} Nb4 {[%emt 0:00:58]} 26. Rfe1 {[%emt 0:07:01]} Qxa4 {[%emt 0:04:08]} 27. e5 {[%emt 0:05:11]} Ne8 {[%emt 0:01:05]} 28. Nfh5 {[%emt 0:10:30]} gxh5 {[%emt 0:02:02]} 29. Qg5+ {[%emt 0:00:06]} Kf8 {[%emt 0:00:47]} 30. f4 {[%emt 0:02:41]} Nd3 {[%emt 0:01:10]} 31. Rf1 {[%emt 0:07:01]} h6 {[%emt 0:01:18]} 32. Qxh6+ {[%emt 0:00:21]} Ke7 {[%emt 0:00:19]} 33. f5 {[%emt 0:00:48]} Qc6 {[%emt 0:00:44]} 34. Bxd3 {[%emt 0:05:55]} cxd3 {[%emt 0:00:10]} 35. fxe6 {[%emt 0:01:21]} Qxe6 {[%emt 0:00:12]} 36. Qxh5 {[%emt 0:01:53]} Nc7 {[%emt 0:01:10]} 37. Rf6 {[%emt 0:01:24]} 1-0

[Event "46th GRE-chT Premier 2018"]
[Site "Rio Achaia"]
[Date "2018.07.10"]
[Round "1"]
[White "Tzintzios, Georgios"]
[Black "Argiroudis, Stamatis"]
[Result "0-1"]
[ECO "B10"]
[WhiteElo "2186"]
[BlackElo "2306"]
[Annotator "NA"]
[PlyCount "88"]
[EventDate "2018.07.10"]
[EventType "team-tourn"]
[EventCountry "GRE"]
[SourceTitle "playchess.com"]
[Source "ChessBase"]
[SourceQuality "1"]
[TimeControl "40/5400+30:1800+30"]

1. e4 {[%emt 0:00:00]} c6 {[%emt 0:00:00]} 2. d3 {[%emt 0:00:38]} d5 {[%emt 0:00:20]} 3. Nd2 {[%emt 0:00:07]} e5 {[%emt 0:00:45]} 4. Ngf3 {[%emt 0:00:07]} Bd6 $11 {[%emt 0:00:37]} 5. Qe2 {[%emt 0:00:06]} Nf6 {[%emt 0:01:08]} 6. g3 {[%emt 0:05:50]} O-O {[%emt 0:00:40]} 7. Bg2 {[%emt 0:00:04]} Re8 {[%emt 0:02:47]} 8. O-O {[%emt 0:00:41]} Nbd7 {[%emt 0:02:33]} 9. b3 {[%emt 0:04:23]} a5 {[%emt 0:04:26]} 10. a4 {[%emt 0:03:04]} Qc7 {[%emt 0:05:45]} 11. Bb2 {[%emt 0:03:36]} Nc5 {[%emt 0:07:27]} 12. Nh4 {[%emt 0:11:11]} Bg4 {[%emt 0:08:33]} 13. f3 {[%emt 0:10:37]} Bd7 {[%emt 0:01:59]} 14. f4 {[%emt 0:00:10]} Bg4 {[%emt 0:06:08]} 15. Qf2 {[%emt 0:05:02]} dxe4 {[%emt 0:06:07]} 16. dxe4 {[%emt 0:06:56]} exf4 {[%emt 0:15:53]} 17. Bxf6 {[%emt 0:06:00]} Ne6 {[%emt 0:05:20]} 18. Bd4 {[%emt 0:04:48]} fxg3 {[%emt 0:00:13]} 19. Qe3 {[%emt 0:03:44]} Nxd4 {[%emt 0:03:17]} 20. Qxd4 {[%emt 0:00:24]} Qe7 {[%emt 0:00:59]} 21. Nf5 {[%emt 0:00:22]} Bxf5 {[%emt 0:00:11]} 22. Rxf5 {[%emt 0:00:06]} g6 {[%emt 0:05:48]} 23. Nc4 {[%emt 0:00:44]} Bb8 {[%emt 0:00:27]} 24. Rc5 {[%emt 0:10:08]} Ba7 {[%emt 0:05:49]} 25. Nd6 {[%emt 0:00:16]} Qe5 {[%emt 0:01:34]} 26. Qxe5 {[%emt 0:03:56]} Rxe5 {[%emt 0:00:04]} 27. Nxb7 {[%emt 0:00:18]} Bxc5+ {[%emt 0:02:10]} 28. Nxc5 {[%emt 0:00:03]} Rxc5 {[%emt 0:00:04]} 29. hxg3 {[%emt 0:07:53]} Rxc2 {[%emt 0:00:14]} 30. Bf1 {[%emt 0:01:10]} Rd8 {[%emt 0:02:27]} 31. Re1 {[%emt 0:03:01]} c5 {[%emt 0:02:31]} 32. Bc4 {[%emt 0:02:24]} Kg7 {[%emt 0:00:45]} 33. e5 {[%emt 0:00:12]} Rdd2 {[%emt 0:00:26]} 34. Bf1 {[%emt 0:02:24]} Rc3 {[%emt 0:01:00]} 35. Bc4 {[%emt 0:00:54]} Rxg3+ {[%emt 0:00:20]} 36. Kh1 {[%emt 0:00:34]} Rc3 {[%emt 0:01:06]} 37. Rf1 {[%emt 0:01:27]} Rxc4 {[%emt 0:01:35]} 38. bxc4 {[%emt 0:00:05]} Ra2 {[%emt 0:00:07]} 39. Rc1 {[%emt 0:04:52]} Kf8 {[%emt 0:00:21]} 40. Rf1 {[%emt 0:00:00]} Ke7 {[%emt 0:00:00]} 41. Rb1 {[%emt 0:03:17]} Rxa4 {[%emt 0:00:39]} 42. Rb5 {[%emt 0:03:15]} Rxc4 {[%emt 0:01:24]} 43. Rxa5 {[%emt 0:00:21]} Ke6 {[%emt 0:00:10]} 44. Ra7 {[%emt 0:00:15]} Re4 {[%emt 0:00:17]} 0-1

[Event "46th GRE-chT Premier 2018"]
[Site "Rio Achaia"]
[Date "2018.07.10"]
[Round "1"]
[White "Liodakis, Konstantinos-Spyros"]
[Black "Michos, Thomas"]
[Result "1/2-1/2"]
[ECO "C51"]
[WhiteElo "2183"]
[BlackElo "2211"]
[Annotator "NA"]
[PlyCount "49"]
[EventDate "2018.07.10"]
[EventType "team-tourn"]
[EventCountry "GRE"]
[SourceTitle "playchess.com"]
[Source "ChessBase"]
[SourceQuality "1"]
[TimeControl "40/5400+30:1800+30"]

1. e4 {[%emt 0:00:00]} e5 {[%emt 0:00:00]} 2. Nf3 {[%emt 0:00:00]} Nc6 {[%emt 0:00:00]} 3. Bc4 {[%emt 0:00:00]} Bc5 {[%emt 0:00:00]} 4. b4 {[%emt 0:00:03]} Bxb4 {[%emt 0:00:03]} 5. c3 {[%emt 0:01:54]} Bc5 {[%emt 0:00:23]} 6. d4 {[%emt 0:09:18]} Bb6 {[%emt 0:00:13]} 7. Nxe5 {[%emt 0:12:10]} Nxe5 {[%emt 0:00:12]} 8. dxe5 {[%emt 0:00:05]} Ne7 {[%emt 0:00:06]} 9. Bg5 {[%emt 0:00:56]} O-O {[%emt 0:00:11]} 10. O-O {[%emt 0:00:49]} Qe8 {[%emt 0:00:04]} 11. Kh1 {[%emt 0:11:31]} Ng6 {[%emt 0:20:11]} 12. Bb3 {[%emt 0:08:41]} h6 {[%emt 0:14:53]} 13. Bc1 {[%emt 0:01:39]} Qxe5 {[%emt 0:00:50]} 14. f4 {[%emt 0:04:19]} Qxe4 {[%emt 0:02:14]} 15. f5 {[%emt 0:09:09]} Ne5 {[%emt 0:01:38]} 16. f6 {[%emt 0:03:26]} d6 {[%emt 0:05:07]} 17. fxg7 {[%emt 0:03:15]} Kxg7 {[%emt 0:00:05]} 18. Bf4 {[%emt 0:05:17]} Ng4 {[%emt 0:08:26]} 19. Nd2 {[%emt 0:01:41]} Qd3 {[%emt 0:04:38]} 20. Bc2 {[%emt 0:03:05]} Qxf1+ {[%emt 0:03:14]} 21. Qxf1 {[%emt 0:00:15]} Nf2+ {[%emt 0:00:04]} 22. Kg1 {[%emt 0:00:14]} Nh3+ {[%emt 0:00:09]} 23. Kh1 {[%emt 0:00:05]} Nf2+ {[%emt 0:00:05]} 24. Kg1 {[%emt 0:00:08]} Nh3+ {[%emt 0:00:05]} 25. Kh1 1/2-1/2

[Event "46th GRE-chT Premier 2018"]
[Site "Rio Achaia"]
[Date "2018.07.10"]
[Round "1"]
[White "Tsiros, Fragkiskos Vlasios"]
[Black "Ladopoulos, Dimitrios"]
[Result "0-1"]
[ECO "B07"]
[WhiteElo "2181"]
[BlackElo "2183"]
[Annotator "NA"]
[PlyCount "111"]
[EventDate "2018.07.10"]
[EventType "team-tourn"]
[EventCountry "GRE"]
[SourceTitle "playchess.com"]
[Source "ChessBase"]
[SourceQuality "1"]
[TimeControl "40/5400+30:1800+30"]

1. e4 {[%emt 0:00:00]} d6 {[%emt 0:00:14]} 2. d4 {[%emt 0:00:00]} Nf6 {[%emt 0:00:24]} 3. Nc3 {[%emt 0:00:48]} c6 {[%emt 0:00:19]} 4. Nf3 {[%emt 0:02:43]} Bg4 {[%emt 0:00:46]} 5. Be2 {[%emt 0:01:42]} Nbd7 {[%emt 0:01:26]} 6. O-O {[%emt 0:03:51]} e5 {[%emt 0:01:01]} 7. Be3 {[%emt 0:04:45]} b5 {[%emt 0:06:40]} 8. a3 {[%emt 0:02:44]} a6 {[%emt 0:10:11]} 9. Nh4 {[%emt 0:07:33]} Bxe2 {[%emt 0:04:34]} 10. Qxe2 {[%emt 0:00:04]} g6 {[%emt 0:02:34]} 11. f4 {[%emt 0:05:46]} exf4 {[%emt 0:10:09]} 12. Bxf4 {[%emt 0:03:31]} Nh5 {[%emt 0:05:09]} 13. Nf5 {[%emt 0:04:48]} Nxf4 {[%emt 0:03:55]} 14. Rxf4 {[%emt 0:01:34]} Qb6 {[%emt 0:04:15]} 15. Re1 {[%emt 0:17:26]} O-O-O {[%emt 0:02:42]} 16. Ng3 {[%emt 0:02:48]} Qxd4+ {[%emt 0:00:49]} 17. Kh1 {[%emt 0:00:03]} Ne5 {[%emt 0:01:42]} 18. a4 {[%emt 0:03:23]} Bh6 {[%emt 0:02:06]} 19. Rff1 {[%emt 0:01:02]} Qd2 {[%emt 0:00:45]} 20. axb5 {[%emt 0:03:31]} Qxe2 {[%emt 0:00:50]} 21. Ncxe2 {[%emt 0:00:55]} axb5 {[%emt 0:00:17]} 22. Nd4 {[%emt 0:01:40]} Rhe8 {[%emt 0:05:18]} 23. Ra1 {[%emt 0:04:20]} Kb7 {[%emt 0:00:45]} 24. Nf3 {[%emt 0:01:01]} Rd7 {[%emt 0:02:43]} 25. b3 {[%emt 0:01:12]} Bf4 {[%emt 0:09:51]} 26. Ne2 {[%emt 0:01:20]} Be3 {[%emt 0:00:33]} 27. Nxe5 {[%emt 0:03:22]} Rxe5 {[%emt 0:03:33]} 28. Ng3 {[%emt 0:00:22]} Rde7 {[%emt 0:03:49]} 29. Rf3 {[%emt 0:01:02]} Bg5 {[%emt 0:01:05]} 30. Rd1 {[%emt 0:03:20]} Kc7 {[%emt 0:00:55]} 31. Rfd3 {[%emt 0:01:13]} R7e6 {[%emt 0:05:42]} 32. Ra1 {[%emt 0:01:14]} Re7 {[%emt 0:03:56]} 33. Ra7+ {[%emt 0:03:49]} Kb6 {[%emt 0:01:23]} 34. Rxe7 {[%emt 0:00:05]} Bxe7 {[%emt 0:00:06]} 35. Rf3 {[%emt 0:00:10]} f6 {[%emt 0:01:30]} 36. h4 {[%emt 0:00:37]} Rc5 {[%emt 0:02:24]} 37. c3 {[%emt 0:01:23]} d5 {[%emt 0:02:43]} 38. exd5 {[%emt 0:01:23]} Rxd5 {[%emt 0:00:42]} 39. h5 {[%emt 0:02:05]} Bd6 {[%emt 0:01:11]} 40. hxg6 {[%emt 0:00:00]} hxg6 {[%emt 0:00:00]} 41. Kg1 {[%emt 0:05:04]} f5 {[%emt 0:03:32]} 42. Ne2 {[%emt 0:03:20]} Bc5+ {[%emt 0:04:46]} 43. Kh2 {[%emt 0:02:20]} Rd2 {[%emt 0:00:17]} 44. Ng3 {[%emt 0:02:16]} Bd6 {[%emt 0:02:21]} 45. Kh3 {[%emt 0:01:02]} Rc2 {[%emt 0:00:26]} 46. Nf1 {[%emt 0:12:33]} Be5 {[%emt 0:00:30]} 47. c4 {[%emt 0:00:49]} bxc4 {[%emt 0:02:51]} 48. bxc4 {[%emt 0:00:12]} Rxc4 {[%emt 0:00:12]} 49. Ne3 {[%emt 0:00:47]} Rc3 {[%emt 0:00:35]} 50. Kh4 {[%emt 0:00:13]} Bd4 {[%emt 0:00:42]} 51. Nf1 {[%emt 0:00:55]} Rxf3 {[%emt 0:00:05]} 52. gxf3 {[%emt 0:00:03]} Bf6+ {[%emt 0:00:12]} 53. Kg3 {[%emt 0:00:04]} Kc5 {[%emt 0:00:17]} 54. Kf4 {[%emt 0:00:03]} Kd4 {[%emt 0:00:26]} 55. Nd2 {[%emt 0:00:04]} c5 {[%emt 0:00:13]} 56. Nb3+ {[%emt 0:00:04] Ke5+} 0-1

[Event "46th GRE-chT Premier 2018"]
[Site "Rio Achaia"]
[Date "2018.07.10"]
[Round "1"]
[White "Tsekmes, Dimitrios"]
[Black "Kouskoutis, Georgios-Alexandros"]
[Result "1/2-1/2"]
[ECO "B38"]
[WhiteElo "2170"]
[BlackElo "2307"]
[Annotator "NA"]
[PlyCount "75"]
[EventDate "2018.07.10"]
[EventType "team-tourn"]
[EventCountry "GRE"]
[SourceTitle "playchess.com"]
[Source "ChessBase"]
[SourceQuality "1"]
[TimeControl "40/5400+30:1800+30"]

1. e4 {[%emt 0:00:00]} c5 {[%emt 0:00:00]} 2. Nf3 {[%emt 0:00:00]} g6 {[%emt 0:00:00]} 3. d4 {[%emt 0:00:00]} cxd4 {[%emt 0:00:00]} 4. Nxd4 {[%emt 0:00:05]} Bg7 {[%emt 0:00:00]} 5. c4 {[%emt 0:00:11]} Nc6 {[%emt 0:00:00]} 6. Be3 {[%emt 0:00:11]} Nf6 {[%emt 0:00:08]} 7. Nc3 {[%emt 0:00:10]} O-O {[%emt 0:00:07]} 8. Be2 {[%emt 0:00:17]} d6 {[%emt 0:00:10]} 9. f3 {[%emt 0:00:32]} Nxd4 {[%emt 0:13:12]} 10. Bxd4 {[%emt 0:00:34]} Be6 {[%emt 0:02:09]} 11. O-O {[%emt 0:01:06]} Rc8 12. b3 a6 13. Kh1 Qa5 14. f4 b5 15. f5 Bd7 16. Bxf6 Bxf6 17. Nd5 Bc6 18. Nxf6+ exf6 19. Qxd6 Bxe4 20. fxg6 hxg6 21. Qxf6 Qd2 22. Bf3 Rc6 23. Qh4 Bxf3 24. Rxf3 Rc5 25. Raf1 bxc4 26. bxc4 Qe2 27. Rc1 Qxa2 28. Qd4 Rg5 29. Rf2 Qa3 30. Rcf1 Qc5 31. Qd3 Rg4 32. Rf4 Rxf4 33. Rxf4 Re8 34. g3 Qc6+ 35. Qd5 Qxd5+ 36. cxd5 Rd8 37. Ra4 Rxd5 38. Rxa6 1/2-1/2

[Event "46th GRE-chT Premier 2018"]
[Site "Rio Achaia"]
[Date "2018.07.10"]
[Round "1"]
[White "Hrisomalis, Theodoros"]
[Black "Sigalas, Frangiskos"]
[Result "0-1"]
[ECO "C05"]
[WhiteElo "2163"]
[BlackElo "2213"]
[Annotator "NA"]
[PlyCount "116"]
[EventDate "2018.07.10"]
[EventType "team-tourn"]
[EventCountry "GRE"]
[SourceTitle "playchess.com"]
[Source "ChessBase"]
[SourceQuality "1"]
[TimeControl "40/5400+30:1800+30"]

1. e4 {[%emt 0:00:00]} e6 {[%emt 0:00:00]} 2. d4 {[%emt 0:00:00]} d5 {[%emt 0:00:00]} 3. Nd2 {[%emt 0:00:00]} Nf6 {[%emt 0:00:31]} 4. Bd3 {[%emt 0:00:51]} c5 {[%emt 0:01:02]} 5. dxc5 {[%emt 0:05:33]} Bxc5 {[%emt 0:08:22]} 6. Qe2 {[%emt 0:00:47]} Nc6 {[%emt 0:02:01]} 7. Ngf3 {[%emt 0:00:17]} Nb4 {[%emt 0:05:47]} 8. e5 {[%emt 0:00:46]} Nd7 {[%emt 0:01:20]} 9. O-O {[%emt 0:00:33]} Nxd3 {[%emt 0:00:51]} 10. cxd3 {[%emt 0:00:03]} O-O {[%emt 0:05:27]} 11. Nb3 {[%emt 0:03:43]} Be7 {[%emt 0:00:07]} 12. Nfd4 {[%emt 0:03:12]} a5 {[%emt 0:01:18]} 13. a4 {[%emt 0:07:21]} Qb6 {[%emt 0:20:44]} 14. Nb5 {[%emt 0:17:05]} f6 {[%emt 0:13:21]} 15. exf6 {[%emt 0:06:59]} Nxf6 {[%emt 0:04:59]} 16. Bf4 {[%emt 0:02:03]} Ne8 {[%emt 0:02:27]} 17. Be5 {[%emt 0:08:54]} Bd7 {[%emt 0:03:41]} 18. Bd4 {[%emt 0:06:23]} Qd8 {[%emt 0:03:01]} 19. Nc5 {[%emt 0:00:15]} Bxc5 {[%emt 0:00:50]} 20. Bxc5 {[%emt 0:00:01]} Rf7 {[%emt 0:03:50]} 21. Nc3 {[%emt 0:05:27]} b6 {[%emt 0:02:17]} 22. Bd4 {[%emt 0:00:35]} Nd6 {[%emt 0:00:39]} 23. Be5 {[%emt 0:01:35]} Nf5 {[%emt 0:00:59]} 24. Qg4 {[%emt 0:03:27]} Rc8 {[%emt 0:01:54]} 25. Rac1 {[%emt 0:06:16]} Qf8 {[%emt 0:02:04]} 26. Ne2 {[%emt 0:03:55]} b5 {[%emt 0:05:15]} 27. Rxc8 {[%emt 0:01:37]} Qxc8 {[%emt 0:00:06]} 28. Rc1 {[%emt 0:00:11]} Qa6 {[%emt 0:01:43]} 29. Qg5 {[%emt 0:02:55]} Qa8 {[%emt 0:03:31]} 30. axb5 {[%emt 0:03:24]} Bxb5 {[%emt 0:00:15]} 31. Nf4 {[%emt 0:00:28]} Bd7 {[%emt 0:02:02]} 32. Rc7 {[%emt 0:04:44]} Qb8 {[%emt 0:02:14]} 33. g4 {[%emt 0:01:38]} Nd4 {[%emt 0:01:39]} 34. Kg2 {[%emt 0:01:55]} h6 {[%emt 0:00:23]} 35. Qh5 {[%emt 0:02:13]} Qd8 {[%emt 0:00:55]} 36. Rb7 {[%emt 0:02:10]} Nc6 {[%emt 0:00:50]} 37. Ng6 {[%emt 0:00:21]} Be8 {[%emt 0:00:29]} 38. Rb3 {[%emt 0:00:48]} d4 {[%emt 0:00:40]} 39. Rb5 {[%emt 0:00:21]} Nxe5 {[%emt 0:01:19]} 40. Nxe5 {[%emt 0:00:00]} Rf6 {[%emt 0:00:00]} 41. Nf7 {[%emt 0:07:34]} Rxf7 {[%emt 0:01:11]} 42. Rxa5 {[%emt 0:00:26]} Rxf2+ {[%emt 0:00:23]} 43. Kxf2 {[%emt 0:00:01]} Bxh5 44. Rxh5 Qb6 {[%emt 0:00:31]} 45. Re5 {[%emt 0:00:54]} Qxb2+ {[%emt 0:00:15]} 46. Kg3 {[%emt 0:00:04]} Kf7 {[%emt 0:00:33]} 47. Re4 {[%emt 0:00:22]} Qd2 {[%emt 0:00:12]} 48. Rf4+ {[%emt 0:00:16]} Ke7 {[%emt 0:00:16]} 49. Rf3 {[%emt 0:00:01]} g5 {[%emt 0:00:20]} 50. Kh3 {[%emt 0:00:20]} e5 {[%emt 0:00:12]} 51. Rg3 {[%emt 0:00:50]} Qe2 {[%emt 0:00:14]} 52. Rg2 {[%emt 0:00:34]} Qxd3+ {[%emt 0:00:10]} 53. Rg3 {[%emt 0:00:04]} Qf1+ {[%emt 0:00:12]} 54. Rg2 {[%emt 0:00:07]} d3 {[%emt 0:00:12]} 55. Kg3 {[%emt 0:00:05]} Qf4+ {[%emt 0:00:11]} 56. Kh3 {[%emt 0:00:08]} Qf3+ {[%emt 0:00:04]} 57. Rg3 {[%emt 0:00:05]} Qf1+ {[%emt 0:00:04]} 58. Rg2 {[%emt 0:00:05]} d2 {[%emt 0:00:05]} 0-1

[Event "46th GRE-chT Premier 2018"]
[Site "Rio Achaia"]
[Date "2018.07.10"]
[Round "1"]
[White "Korniotis, Filippos"]
[Black "Samaridis, Konstantinos"]
[Result "1/2-1/2"]
[ECO "D37"]
[WhiteElo "2163"]
[BlackElo "2103"]
[Annotator "NA"]
[PlyCount "92"]
[EventDate "2018.07.10"]
[EventType "team-tourn"]
[EventCountry "GRE"]
[SourceTitle "playchess.com"]
[Source "ChessBase"]
[SourceQuality "1"]
[TimeControl "40/5400+30:1800+30"]

1. d4 {[%emt 0:00:00]} Nf6 {[%emt 0:00:00]} 2. Nf3 {[%emt 0:00:38]} d5 {[%emt 0:00:00]} 3. c4 {[%emt 0:00:20]} e6 {[%emt 0:00:00]} 4. Nc3 {[%emt 0:00:15]} dxc4 {[%emt 0:00:06]} 5. e3 {[%emt 0:00:28]} a6 {[%emt 0:00:08]} 6. a4 {[%emt 0:01:39]} c5 {[%emt 0:00:06]} 7. Bxc4 {[%emt 0:00:05]} Nc6 {[%emt 0:01:01]} 8. O-O {[%emt 0:00:22]} Be7 {[%emt 0:00:10]} 9. Qd3 {[%emt 0:26:26]} O-O {[%emt 0:04:59]} 10. Rd1 {[%emt 0:00:04]} Qc7 {[%emt 0:01:19]} 11. Qe2 {[%emt 0:10:50]} b6 {[%emt 0:07:31]} 12. h3 {[%emt 0:02:33]} Bb7 {[%emt 0:01:33]} 13. Bd2 {[%emt 0:08:33]} Rfd8 {[%emt 0:06:23]} 14. Be1 {[%emt 0:02:13]} Nb4 {[%emt 0:08:15]} 15. Rac1 {[%emt 0:07:13]} Bxf3 {[%emt 0:13:26]} 16. Qxf3 {[%emt 0:00:05]} cxd4 {[%emt 0:02:50]} 17. Na2 {[%emt 0:11:47]} Nxa2 {[%emt 0:09:00]} 18. Bxa2 {[%emt 0:00:03]} Qe5 {[%emt 0:03:36]} 19. Rxd4 {[%emt 0:00:57]} Bc5 {[%emt 0:01:15]} 20. Rxd8+ {[%emt 0:00:30]} Rxd8 {[%emt 0:00:02]} 21. Qe2 {[%emt 0:09:37]} a5 {[%emt 0:00:57]} 22. Bc3 {[%emt 0:00:05]} Qe4 {[%emt 0:01:04]} 23. Bb1 {[%emt 0:12:58]} Qxa4 {[%emt 0:04:46]} 24. Bxf6 {[%emt 0:00:05]} gxf6 {[%emt 0:00:09]} 25. Qh5 {[%emt 0:00:30]} Kf8 {[%emt 0:01:14]} 26. Qxh7 {[%emt 0:01:33]} Rd1+ {[%emt 0:00:22]} 27. Rxd1 {[%emt 0:00:03]} Qxd1+ {[%emt 0:00:06]} 28. Kh2 {[%emt 0:00:04]} Bd6+ {[%emt 0:00:11]} 29. g3 {[%emt 0:01:27]} Qf1 {[%emt 0:06:31]} 30. Qc2 {[%emt 0:00:26]} Bb4 {[%emt 0:00:17]} 31. Ba2 {[%emt 0:02:18]} Be1 {[%emt 0:18:09]} 32. Bc4 {[%emt 0:00:01]} Qxf2+ {[%emt 0:00:13]} 33. Qxf2 {[%emt 0:00:02]} Bxf2 {[%emt 0:00:20]} 34. e4 {[%emt 0:00:01]} a4 {[%emt 0:02:16]} 35. Bb5 {[%emt 0:00:05]} Bd4 {[%emt 0:00:03]} 36. Bxa4 {[%emt 0:00:04]} Bxb2 {[%emt 0:00:06]} 37. Kg2 {[%emt 0:00:17]} Ke7 {[%emt 0:01:48]} 38. Kf3 {[%emt 0:00:04]} f5 {[%emt 0:00:14]} 39. exf5 {[%emt 0:00:04]} exf5 {[%emt 0:00:09]} 40. g4 {[%emt 0:00:00]} Kf6 {[%emt 0:00:00]} 41. Bb3 {[%emt 0:00:43]} fxg4+ {[%emt 0:00:47]} 42. hxg4 {[%emt 0:00:06]} b5 {[%emt 0:00:11]} 43. Bd5 {[%emt 0:00:12]} b4 {[%emt 0:00:14]} 44. Bb3 {[%emt 0:00:05]} Kg6 {[%emt 0:00:14]} 45. Ke4 {[%emt 0:00:39]} f6 {[%emt 0:01:11]} 46. Be6 {[%emt 0:01:37]} Kg5 {[%emt 0:00:15]} 1/2-1/2